Workbook

Sheet Gain_Prob
B2: Order Book
A3: Level | B3: Bid | C3: Ask | D3: Fair price (Assumed) | E3: Bid-ask spread
A4: 1 | B4: 100 | C4: 100.5 | D4: 100.25 | E4: =C4-B4 -> 0.5 | H4: Best bid @100 and best ask at 100.5
A5: 2 | B5: 99.5 | C5: 101.25 | D5: 100.25 | H5: I will earn 50 cents
A6: 3 | B6: 99 | C6: 101.5 | D6: 100.25
A7: 4 | B7: 98.25 | C7: 102.5 | D7: 100.25 | H7: Best bid @99.5 and best ask at 101
A8: 5 | B8: 98 | C8: 103 | D8: 100.25 | H8: I will earn 150 cents
A12: Level | B12: Gains | C12: Probability | D12: of getting a fill
A13: 1 | B13: =D4-B4 -> 0.25 | C13: 0.5111086226
A14: 2 | B14: =D5-B5 -> 0.75 | C14: 0.2503695409
A15: 3 | B15: 1.25 | C15: 0.1142217245
A16: 4 | B16: 2 | C16: 0.06718924972
A17: 5 | B17: 2.25 | C17: 0.05711086226
A20: Level | B20: EV
A21: 1 | B21: =B13*C13 -> 0.1277771557
A22: 2 | B22: =B14*C14 -> 0.1877771557
A23: 3 | B23: 0.1427771557
A24: 4 | B24: 0.1343784994
A25: 5 | B25: 0.1284994401

Sheet Pegging
D2: At the buy side
B3: Order Book | D3: Pegging order: is a limit order where the price of the order is dependent on the price of a particluar level of the Order book
A4: Level | B4: Bid | C4: Ask
A5: 1 | B5: 100 | C5: 100.5
A6: 2 | B6: 99.5 | C6: 101
A7: 3 | B7: 99 | C7: 101.5
A8: 4 | B8: 98.25 | C8: 102.5
A9: 5 | B9: 98 | C9: 103
A12: An order that is pegged at say Level 1
A13: Whatever the best bid is: I will fire an order 1 tick (5 cents more than the best bid), I will not consider my own bid when evaluating the best bid
A14: My order is pegged at level 1 bid
A16: Example 1
A17: I will therefore fire my order at 100.05!!
A18: If the order at 100 moves to 100.05, then I would modify my order to 100.1!!
A20: Example 2
A21: An order that is pegged at say Level 2
A22: Whatever the second best bid is: I will fire an order 1 tick (5 cents more than the second best bid)
A23: My order is pegged at level 2 bid
A26: My order was pegged to Level 2 (5 cents above the 2nd Level)
B27: Order Book
A28: Level | B28: Bid | C28: Ask
A29: 1 | B29: 100 | C29: 100.5
A30: 2 | B30: 99.55 | C30: 101
A31: 3 | B31: 99.5 | C31: 101.5
A32: 4 | B32: 99 | C32: 102.5
A33: 5 | B33: 98.25 | C33: 103
B34: 98
A36: A tick is fired at 100.2, how will I modify my order?
B37: Order Book | J37: Order Book
A38: Level | B38: Bid | C38: Ask | I38: Qty | J38: Bid | K38: Ask | L38: Qty
A39: 1 | B39: 100.2 | C39: 100.5 | I39: 100 | J39: 100.2 | K39: 100.5 | L39: 200
A40: 2 | B40: 100 | C40: 101 | I40: 50 | J40: 100.05 | K40: 101 | L40: 300
A41: 3 | B41: 99.55 | C41: 101.5 | I41: 150 | J41: 100 | K41: 102 | L41: 400
A42: 4 | B42: 99.5 | C42: 102.5
A43: 5 | B43: 99 | C43: 103 | H43: Ques | I43: Fires a Sell order for 100 with a QTY of 200
B44: 98.25 | I44: What would be the price of the fills that he will get?
B45: 98 | H45: Answer | I45: Qty | J45: Price
I46: 100 | J46: 100.2
A47: Here I will fire an order at 100.05 | I47: 50 | J47: 100.05
I48: 50 | J48: 100

Sheet Discretion
E2: Discretion order
B3: Order Book | E3: You would give your broker/code a discretion: that it can modify the price of an order by a certain amount if it can get traded!
A4: Level | B4: Bid | D4: Ask | E4: Example:
A5: 1 | B5: 100 | D5: 100.5 | E5: You fire a Buy limit order at 100, with a discretion range of 10 cents
A6: 2 | B6: 99.5 | D6: 101
A7: 3 | B7: 99 | D7: 101.5
A8: 4 | B8: 98.25 | D8: 102.5
A9: 5 | B9: 98 | D9: 103
A13: 10:00am | D13: Order Book
B14: Level | D14: Bid | E14: Ask | G14: With a discretion range of 10 cents
B15: 1 | D15: 100 | E15: 100.5 | G15: Your code knows that it can modify the price till 100.1, if there is an ask at that price!!
B16: 2 | D16: 99.75 | E16: 100.5
B17: 3 | D17: 99.5 | E17: 101
B18: 4 | D18: 99 | E18: 101.5
B19: 5 | D19: 98.25 | E19: 102.5
D20: 98 | E20: 103
A21: 10:05:00
D22: Order Book | F22: Then your discretion range will be used, and your order will be modfied to 100.1, so that it gets executed!
B23: Level | D23: Bid | E23: Ask
B24: 1 | D24: 100 | E24: 100.1
B25: 2 | D25: 99.75 | E25: 100.5
B26: 3 | D26: 99.5 | E26: 101
B27: 4 | D27: 99 | E27: 101.5
B28: 5 | D28: 98.25 | E28: 102.5
D29: 98 | E29: 103
A31: Think in term of Expected Value
A33: Case 1: No discretion range is used.
A35: Case 2: Discretion range of 10 cents is used. | G35: Given:
G36: Fair price is 100.25
A38: EV for Case 1: | G38: 0.5 is the prob of getting a trade at best bid
A39: EV = prob of getting traded * profit of trade | G39: profit= fair price - traded price | J39: (buy )
A40: =0.5 * 0.25 | C40: =0.125
A42: EV for Case 2:
A43: EV = prob of getting traded * profit of trade | G43: profit = 100.25-100.1
A44: =1 * 0.15 | C44: =0.15 | G44: =0.15 -> 0.15

Sheet Microsoft_eg
A1: Client calls you at 10:00am, and says he wants you to buy 30,000 shares of Microsoft at the best possbile price today!!!
A2: Objective: Buy 30,000 shares of Microsoft by 3:00pm
F4: =D6*E6 | G4: =SUM($F$6:F6)/SUM($D$6:D6)
A5: Time | B5: Bid | C5: Ask | D5: Total Qty traded in mkt | E5: Avg TRADE Price | F5: TP*Vol traded | G5: VWAP | I5: So the traders buys 6000 qty each hour
A6: 10:00:00 | B6: 920 | C6: 921.3 | D6: 5000 | E6: =AVERAGE(B6:C6) -> 920.65 | F6: =D6*E6 -> 4603250 | G6: =SUM($F$6:F6)/SUM($D$6:D6) -> 920.65 | I6: and gets the avg price of $925
A7: =A6+15/24/60 -> 10:15:00 | B7: 920.4 | C7: 921.5 | D7: 15000 | E7: =AVERAGE(B7:C7) -> 920.95 | F7: =D7*E7 -> 13814250 | G7: =SUM($F$6:F7)/SUM($D$6:D7) -> 920.875
A8: =A7+15/24/60 -> 10:30:00 | B8: 921.2 | C8: 922.3 | D8: 7500 | E8: 921.75 | F8: =D8*E8 -> 6913125 | G8: =SUM($F$6:F8)/SUM($D$6:D8) -> 921.1136364
A9: 10:45:00 | B9: 920 | C9: 921 | D9: 10000 | E9: 920.5 | F9: 9205000 | G9: =SUM($F$6:F9)/SUM($D$6:D9) -> 920.95 | I9: 3:00pm
A10: 11:00:00 | B10: 922.8 | C10: 923.5 | D10: 50000 | E10: 923.15 | F10: 46157500 | G10: =SUM($F$6:F10)/SUM($D$6:D10) -> 922.2071429 | I10: Buy the shares @ avg of $925
A11: 11:15:00 | B11: 923.4 | C11: 924.7 | D11: 150000 | E11: 924.05 | F11: 138607500 | G11: =SUM($F$6:F11)/SUM($D$6:D11) -> 923.3710526 | I11: Is it a good buy or a bad buy?
A12: 11:30:00 | B12: 924 | C12: 924.7 | D12: 5000 | E12: 924.35 | F12: 4621750 | G12: =SUM($F$6:F12)/SUM($D$6:D12) -> 923.3912371 | I12: What is the criteria?
A13: 11:45:00 | B13: 924.8 | C13: 925.5 | D13: 125000 | E13: 925.15 | F13: 115643750 | G13: =SUM($F$6:F13)/SUM($D$6:D13) -> 923.9894558
A14: 12:00:00 | B14: 923.2 | C14: 923.6 | D14: 10000 | E14: 923.4 | F14: 9234000 | G14: =SUM($F$6:F14)/SUM($D$6:D14) -> 923.9738411
A15: 12:15:00 | B15: 924.2 | C15: 924.5 | D15: 17000 | E15: 924.35 | F15: 15713950 | G15: =SUM($F$6:F15)/SUM($D$6:D15) -> 923.9900507
A16: 12:30:00 | B16: 925 | C16: 925.5 | D16: 150000 | E16: 925.25 | F16: 138787500 | G16: =SUM($F$6:F16)/SUM($D$6:D16) -> 924.3371442
A17: 12:45:00 | B17: 926.7 | C17: 927 | D17: 2500000 | E17: 926.85 | F17: 2317125000 | G17: =SUM($F$6:F17)/SUM($D$6:D17) -> 926.400583
A18: 13:00:00 | B18: 928.2 | C18: 928.9 | D18: 5000000 | E18: 928.55 | F18: 4642750000 | G18: =SUM($F$6:F18)/SUM($D$6:D18) -> 927.7365374
A19: 13:15:00 | B19: 927 | C19: 927.1 | D19: 500000 | E19: 927.05 | F19: 463525000 | G19: =SUM($F$6:F19)/SUM($D$6:D19) -> 927.6963632
A20: 13:30:00 | B20: 926.5 | C20: 927 | D20: 650000 | E20: 926.75 | F20: 602387500 | G20: =SUM($F$6:F20)/SUM($D$6:D20) -> 927.6294605
A21: 13:45:00 | B21: 926 | C21: 926.7 | D21: 15000000 | E21: 926.35 | F21: 13895250000 | G21: =SUM($F$6:F21)/SUM($D$6:D21) -> 926.8362262
A22: 14:00:00 | B22: 927.5 | C22: 928 | D22: 1500000 | E22: 927.75 | F22: 1391625000 | G22: =SUM($F$6:F22)/SUM($D$6:D22) -> 926.8895707
A23: 14:15:00 | B23: 929 | C23: 929.2 | D23: 25000 | E23: 929.1 | F23: 23227500 | G23: =SUM($F$6:F23)/SUM($D$6:D23) -> 926.8917193
A24: 14:30:00 | B24: 930.2 | C24: 930.5 | D24: 5000000 | E24: 930.35 | F24: 4651750000 | G24: =SUM($F$6:F24)/SUM($D$6:D24) -> 927.4545997
A25: 14:45:00 | B25: 931.1 | C25: 931.5 | D25: 150000 | E25: 931.3 | F25: 139695000 | G25: =SUM($F$6:F25)/SUM($D$6:D25) -> 927.4732851
A26: 15:00:00 | B26: 930.5 | C26: 930.8 | D26: 10000 | E26: 930.65 | F26: 9306500 | G26: =SUM($F$6:F26)/SUM($D$6:D26) -> 927.4743139
D27: =SUM(D6:D26) -> 30879500 | F27: =SUM(F6:F26) -> 28639943075
F30: =F27/D27 -> 927.4743139

Sheet VWAP
A2: Client calls you at 10:00am, and says he wants you to buy 30,000 shares of Microsoft at the best possbile price today!!!
C3: Vol. Wt avg hourly Price | D3: No. of shares traded at that price in the market | J3: VWAP
B4: 10:00am | C4: 920 | D4: 50000 | J4: =D4*C4 -> 46000000
B5: 11:00am | C5: 923 | D5: 25000 | J5: =D5*C5 -> 23075000
B6: 12:00noon | C6: 925 | D6: 20000 | J6: 18500000
B7: 2:00pm | C7: 928 | D7: 100000 | J7: 92800000
B8: 3:00pm | C8: 930 | D8: 75000 | J8: 69750000 | K8: Total Volume
I9: Cumm Price*Vol | J9: =SUM(J4:J8) -> 250125000 | K9: =SUM(D4:D8) -> 270000
B10: You got an average price of $925!!
I11: VWAP | J11: =J9/K9 -> 926.3888889
A21: One way to compare if the price was good/bad is VWAP
C24: VWAP = | D24: =D4*C4 | E24: +D6*C6 | F24: and so on… | H24: divide it by total amount of shares traded!!
D26: =SUMPRODUCT(C4:C8,D4:D8)/SUM(D4:D8) -> 926.3888889

Sheet Pegging+Discretion
F2: Blending Pegging order and Discretion order
B3: Order Book
A4: Level | B4: Bid | C4: Ask
A5: 1 | B5: 100 | C5: 100.5
A6: 2 | B6: 99.5 | C6: 101
A7: 3 | B7: 99 | C7: 101.5
A8: 4 | B8: 98.25 | C8: 102.5
A9: 5 | B9: 98 | C9: 103
A13: Example:
A14: I will peg my Buy limit order at Best bid + 10 cents, with a discretion range of 20 cents
B17: 10:00am | D17: Order Book
C18: Level | D18: Bid | E18: Ask | G18: With a discretion range of 20 cents
C19: 1 | D19: 100.1 | E19: 100.5 | G19: Your code knows that it can modify the price till 100.3, if there is an ask at that price!!
C20: 2 | D20: 100 | E20: 100.5
C21: 3 | D21: 99.5 | E21: 101
C22: 4 | D22: 99 | E22: 101.5
C23: 5 | D23: 98.25 | E23: 102.5
D24: 98 | E24: 103
A25: Case 1 | B25: 10:05:00
A26: A sell order comes @100.3
D27: Order Book | G27: Then your discretion range will be used, and your order will be modfied to 100.3, so that it gets executed!
C28: Level | D28: Bid | E28: Ask
C29: 1 | D29: 100.1 | E29: 100.3
C30: 2 | D30: 100 | E30: 100.5
C31: 3 | D31: 99.5 | E31: 101
C32: 4 | D32: 99 | E32: 101.5
C33: 5 | D33: 98.25 | E33: 102.5
D34: 98 | E34: 103
A35: Case 2
A36: If a new buy order comes at 100.2
B37: 10:05am | D37: Order Book
C38: Level | D38: Bid | E38: Ask
C39: 1 | D39: 100.2 | E39: 100.5
D40: 100.1 | E40: 100.5
C41: 2 | D41: 100 | E41: 101
C42: 3 | D42: 99.5 | E42: 101.5
C43: 4 | D43: 99 | E43: 102.5
C44: 5 | D44: 98.25 | E44: 103
D45: 98
A47: I will modify my buy order at 100.1 to 100.3 (10 cents better than the best bid)
A48: 100.3
A49: I will use my discretion range to fire an order at 100.5!!
A51: Because of pegging we will fire an order at 100.3
A52: Case 2 | B52: 10:05am | D52: Order Book
C53: Level | D53: Bid | E53: Ask
C54: 1 | D54: 100.3 | E54: 100.5
C55: 2 | D55: 100.2 | E55: 100.5
C56: 3 | D56: 100 | E56: 101
C57: 4 | D57: 99.5 | E57: 101.5
C58: 5 | D58: 99 | E58: 102.5
D59: 98.25 | E59: 103
D60: 98
A62: Now the discretion range will come into play!
A63: Discretion order will be fired, which means we will modify our order at 100.3 to 100.5
A65: The check for discretion range would be: The price after using discretion range should not be above the FAIR Price

Sheet Pegging+Discretion_Sell
F2: Blending Pegging order and Discretion order
B3: Order Book
A4: Level | B4: Bid | C4: Ask
A5: 1 | B5: 100 | C5: 100.5
A6: 2 | B6: 99.5 | C6: 101
A7: 3 | B7: 99 | C7: 101.5
A8: 4 | B8: 98.25 | C8: 102.5
A9: 5 | B9: 98 | C9: 103
A13: Example:
A14: I will peg my SELL limit order at Best Ask - 10 cents, with a discretion range of 20 cents
B17: 10:00am | D17: Order Book
C18: Level | D18: Bid | E18: Ask | G18: With a discretion range of 20 cents
C19: 1 | D19: 100 | E19: 100.4 | G19: Your code knows that it can modify the price till 100.2, if there is a bid at that price!!
C20: 2 | D20: 99.5 | E20: 100.5
C21: 3 | D21: 99 | E21: 101
C22: 4 | D22: 98.25 | E22: 101.5
C23: 5 | D23: 98 | E23: 102.5
E24: 103
A25: Case 1 | B25: 10:05:00
A26: A buy order comes @100.2
D27: Order Book | G27: Then your discretion range will be used, and your order will be modfied to 100.2, so that it gets executed!
C28: Level | D28: Bid | E28: Ask
C29: 1 | D29: 100.2 | E29: 100.4
C30: 2 | D30: 100 | E30: 100.5
C31: 3 | D31: 99.5 | E31: 101
C32: 4 | D32: 99 | E32: 101.5
C33: 5 | D33: 98.25 | E33: 102.5
D34: 98 | E34: 103
A35: Case 2
A36: If a new sell order comes at 100.3
B37: 10:05am | D37: Order Book
C38: Level | D38: Bid | E38: Ask
C39: 1 | D39: 100 | E39: 100.3
D40: 99.5 | E40: 100.4
C41: 2 | D41: 99 | E41: 100.5
C42: 3 | D42: 98.25 | E42: 101
C43: 4 | D43: 98 | E43: 101.5
C44: 5 | E44: 102.5
E45: 103
A47: I will modify my sell order at 100.4 to 100.2 (10 cents better than the best ASK)
A49: I will use my discretion range to fire a SELL order at 100!!
A51: Because of pegging we will fire an order at 100
A52: Case 2 | B52: 10:05am | D52: Order Book
C53: Level | D53: Bid | E53: Ask
C54: 1 | D54: 100 | E54: 100.2
C55: 2 | D55: 99.5 | E55: 100.3
C56: 3 | D56: 99 | E56: 100.5
C57: 4 | D57: 98.25 | E57: 101
C58: 5 | D58: 98 | E58: 101.5
E59: 102.5
E60: 103
A62: Now the discretion range will come into play!
A63: Discretion order will be fired, which means we will modify our order at 100.2 to 100.0
A74: The check for discretion range would be: The price after using discretion range should not be above the FAIR Price

Sheet Guerilla
A1: Guerilla bots
C2: Bid | D2: Ask | E2: Fair Price | G2: Loss coz of a market order
C3: 100 | D3: 101 | E3: 100.5 | G3: 0.5
A7: Our Strategy | C7: Peg your order at best bid + 10 cents
A9: Your order | C9: Bid | D9: Ask
C10: 100.1 | D10: 101
A12: Another player who has pegged his order at 5 cents above the best bid
A13: 2nd player order
C14: Bid | D14: Ask
C15: 100.15 | D15: 101
A17: Because the Best Bid has changed our strategy will now fire another order
A18: Your order | C18: Bid | D18: Ask
C19: 100.25 | D19: 101
A21: How can a Guerilla algo game you?
A23: If your pegging logic is only to be 5 cents better than the best bid:
C24: Bid | D24: Ask
C25: 100 | D25: 101
C26: You fire an order at 100.05 for 1000 qty
A29: Guerilla algo: fire an order for 100.2 with qty 10 shares
C30: Bid | D30: Ask
C31: 100.2 | D31: 101
A33: You fire an order at 100.25 for 1000qty
C34: Bid | D34: Ask
C35: 100.25 | D35: 101
A37: Guerilla algo: fire an order for 100.8 with qty 1 shares
C38: You fire an order at 100.85 for 1000qty
A40: Guerilla algo: fire a Sell order for 100.85 with qty 1000 shares
C42: You get a buy at 100.85 and he gets a sell at 100.85 | J42: Guerilla will fire a sell for 1000 shares at 100.85
B43: Market comes back to its original price
C44: Bid | D44: Ask
C45: 100 | D45: 101
B46: Guerilla algo: fire a Buy order for 100.5 with qty 1000 shares to sq off his position

Sheet Defns
E2: Order Book
A3: 10:00am | C3: Level | D3: Qty | E3: Bid | F3: Ask | G3: Qty
A4: Same side depth | B4: 5 traders/5 orders@100 with 100 qty each | C4: 1 | D4: 500 | E4: 100 | F4: 100.5 | G4: 100
A5: 500 | C5: 2 | D5: 250 | E5: 99.5 | F5: 101 | G5: 200
A6: Same side depth till level 2 | C6: 3 | D6: 100 | E6: 99 | F6: 101.5 | G6: 50
A7: 750 | C7: 4 | D7: 300 | E7: 98.25 | F7: 102.5 | G7: 10
C8: 5 | D8: 500 | E8: 98 | F8: 103 | G8: 30
A10: 10:15am | B10: Trader1 fires an order of size 200 @100.1
E11: Order Book
C12: Level | D12: Qty | E12: Bid | F12: Ask | G12: Qty
A13: ALONE | B13: 1 trader/order @100.1 with 200 qty | C13: 1 | D13: 200 | E13: 100.1 | F13: 100.5 | G13: 100
A14: Same side depth | C14: =C13+1 -> 2 | D14: 500 | E14: 100 | F14: 101 | G14: 200
A15: 200 | C15: =C14+1 -> 3 | D15: 250 | E15: 99.5 | F15: 101.5 | G15: 50
C16: 4 | D16: 100 | E16: 99 | F16: 102.5 | G16: 10
C17: 5 | D17: 300 | E17: 98.25 | F17: 103 | G17: 30
C18: 6 | D18: 500 | E18: 98
B20: 1 order will be assumed as a single trader!
A22: Case 1
B23: 10:01am | C23: Buy order @100.1 for 500 qty | G23: then I will say order is alone
A25: Case 2 | B25: 10:01am | C25: Buy order @100.1 for 100 qty | G25: at this instant the order was alone
B26: 10:01.0001am | C26: Buy order @100.1 for 100 qty | G26: FROM HERE ONWARDS THE ORDER IS NOT ALONE
B27: 10:01.0002am | C27: Buy order @100.1 for 100 qty
B28: 10:01.0005am | C28: Buy order @100.1 for 100 qty
B29: 10:01.0008am | C29: Buy order @100.1 for 100 qty

Sheet TTH
B2: Liquidity | C2: Urgency
C3: Liquidity/Urgency | D3: Low | E3: Medium | F3: High | H3: Algo | I3: Efficiency (in terms of volume traded)
C4: Low | D4: Y | H4: Y | I4: 0.01
C5: Medium | E5: Z | H5: Z | I5: 0.05
C6: High | F6: X | H6: X | I6: 0.15
B8: Algorithm X to trade a very liquid stock with high urgency!!!!
A11: Example | B11: Client wants you to buy 10000 shares of AXISBANK in a day!!
A12: Given based on historical data
A13: AXISBANK | B13: #of shares traded
B14: 180000 | C14: shares in a day
B15: =B14/6 -> 30000 | C15: shares/hour
B17: =B15/60 -> 500 | C17: shares/min
A20: Given:Urgency of my client is HIGH
A21: I will use algorithm X to trade this order!!
A22: Based on my experience I know this
A23: The efficiency of this algorithm is 15% of total market volume!!
A25: if 500 shares get traded in a min, I will be able to trade 500*15% in a min!!
A26: =500*0.15 | B26: shares/min through my algo X
A27: =500*0.15 -> 75 | B27: shares/min through my algo X | D27: Shares to be traded | F27: 10000
F28: =F27/A27 -> 133.3333333 | G28: minutes | I28: 133.33*75 shares per minute = 10000 shares
B31: TTH = | C31: Order shares/vol. ratio /Min vol
B32: Theoretical Time Horizon
B33: Client Order | C33: Order shares | D33: 10000
C34: Vol ratio (Efficieny of algo) | D34: 0.15 | E34: Urgency high | G34: X (algo)
C35: Min vol | D35: 500 | E35: /min
G36: =500*0.15 -> 75 | H36: shares /min
C37: TTH = | D37: =D33/D34/D35 -> 133.3333333 | E37: minutes | G37: =D33/G36 -> 133.3333333 | H37: minutes

Sheet Algo1
A2: EXCHANGE | C2: Order Router/Order Manager
A5: Market adaptor | C5: Strategy
C8: Triggers for your algorithm
B9: ON price level change | C9: Price level change in the best Bid or best ASK/change in vwap
B10: On Fill/trade | C10: TRADE or FILL
B11: ON ack | C11: Acknowldgement
B16: Order Book
A17: Level | B17: Bid | C17: Ask
A18: 1 | B18: 100 | C18: 100.5
A19: 2 | B19: 99.5 | C19: 101
A20: 3 | B20: 99 | C20: 101.5
A21: 4 | B21: 98.25 | C21: 102.5
A22: 5 | B22: 98 | C22: 103
B24: 1. You will check if your order book is stable!! | G24: If there are atleast 5 levels in the order book
B25: 2. Yes there is a pegging logic at 5 cents above the best bid | G25: If the Bid-ask spread is not greater than 1% of the best bid
B26: 3. Discretion at 20 cents
B27: 4. The BUY order price should not be above the Fair Price | G27: The Fair Price in this example is say 100.3
A28: Step 1: | B28: Fire a pegged order
A30: 10:00am
B31: Order Book
A32: Level | B32: Bid | C32: Ask
A33: 1 | B33: 100.05 | C33: 100.5
A34: 2 | B34: 100 | C34: 101
A35: 3 | B35: 99.5 | C35: 101.5
A36: 4 | B36: 99 | C36: 102.5
A37: 5 | B37: 98.25 | C37: 103
B38: 98
A39: A sell order comes at 100.2
A40: 10:05am
B42: Order Book
A43: Level | B43: Bid | C43: Ask
A44: 1 | B44: 100.05 | C44: 100.2
A45: 2 | B45: 100 | C45: 101
A46: 3 | B46: 99.5 | C46: 101.5
A47: 4 | B47: 99 | C47: 102.5
A48: 5 | B48: 98.25 | C48: 103
B49: 98
A51: Step 2: | B51: I will check if a Discretion order has been fired or not?
B52: I will fire a modify from 100.05 to 100.2
A53: 10:05.01am
B55: Order Book
A56: Level | B56: Bid | C56: Ask
A57: 1 | B57: 100.2 | C57: 100.5 | F57: Our Bid is the best market bid now, discretion price is the price at which I fired my order (because of discretion range)
A58: 2 | B58: 100 | C58: 101
A59: 3 | B59: 99.5 | C59: 101.5
A60: 4 | B60: 99 | C60: 102.5
A61: 5 | B61: 98.25 | C61: 103
B62: 98

Sheet Algo2_Stub
D4: Order Book | L4: Say the client had asked us to trade 100,000 shares
B5: Level | D5: Bid | E5: Ask
B6: 1 | C6: 1000 | D6: 100 | E6: 100.5 | F6: 200 | L6: We are firing a pegged + discretion order for 1000 qty!!
B7: 2 | C7: 400 | D7: 99.95 | E7: 101 | F7: 500
B8: 3 | C8: 300 | D8: 99 | E8: 101.5 | F8: 500 | L8: What can happen:
B9: 4 | C9: 300 | D9: 98.25 | E9: 102.5 | F9: 500 | L9: I can get a partial fill!!!!
B10: 5 | C10: 300 | D10: 98 | E10: 103 | F10: 500 | L10: And then I need to decide whether I have to modify my order or do nothing!!
A12: You had fired an order at 100 for 1000 qty (because my algo was pegged at 5 cents better than the bid)
A13: and you got a partial fill at 100 for 400 shares!!!
A17: 10:00am | D17: Order Book
B18: Level | C18: Qty | D18: Bid | E18: Ask | F18: Qty
B19: 1 | C19: 600 | D19: 100 | E19: 100.5 | F19: 200 | I19: Whether I need to modify this order's qty to 1000 again!!
B20: 2 | C20: 400 | D20: 99.95 | E20: 101 | F20: 500
B21: 3 | C21: 300 | D21: 99 | E21: 101.5 | F21: 600
B22: 4 | C22: 300 | D22: 98.25 | E22: 102.5 | F22: 500
B23: 5 | C23: 300 | D23: 98 | E23: 103 | F23: 50
A26: CONDITION
A27: If my stub calculation is that I will consider an order as a stub order only if 20% of the original is remaning!!
A30: Logic: If stub remains----> Modify the order and replenish the QTY
A31: If stub doesn't remain---> then do nothing

Sheet EV of modifying_1
A3: t=0 | H3: Total shares to be BOUGHT | I3: 100000
B4: Qty | C4: Order Book | H4: Shares bought till now | I4: 10000
A5: Level | C5: Bid | D5: Ask | E5: Qty | H5: Reserve Left | I5: =I3-I4 -> 90000
A6: 1 | B6: 1000 | C6: 100 | D6: 100.2 | E6: 500
A7: 2 | B7: 100 | C7: 99.5 | D7: 101 | E7: 100
A8: 3 | B8: 500 | C8: 99 | D8: 101.5 | E8: 300
A9: 4 | B9: 10000 | C9: 98.25 | D9: 102.5 | E9: 500
A10: 5 | C10: 98 | D10: 103 | E10: 10000
A12: Step 1
A13: You are placing order of size 1000 at a particular price
A14: Step 2
A15: You need to add/modify your order depending upon fills and price changes
A17: Say, you get a partial fill of 900 shares at $100
A18: And, a 3rd party order comes in for 1000 shares at the best bid
B20: Qty | C20: Order Book
A21: Level | C21: Bid | D21: Ask | E21: Qty
A22: 1 | B22: 1100 | C22: 100 | D22: 100.2 | E22: 500
A23: 2 | B23: 100 | C23: 99.5 | D23: 101 | E23: 100
A24: 3 | B24: 500 | C24: 99 | D24: 101.5 | E24: 300
A25: 4 | B25: 10000 | C25: 98.25 | D25: 102.5 | E25: 500
A26: 5 | C26: 98 | D26: 103 | E26: 10000
A29: What will you do?
A31: Case 1 | B31: If I find that a stub of my order remains, I add 900 qty at the same price level
A32: Case 2 | B32: If I find that a stub of my order remains I send a new pegged order (at best bid + 1 tick) for 1000 qty
A33: Case 3 | B33: If I find that a stub of my order remains I send a new pegged order (at best bid + 1 tick) for 900 qty and don't cancel the 100 qty at $100
A34: Known to us
A35: The prob of executing at the best level is 0.6 for the first 1000 qty and 0.1 for the next thousand

Sheet EV of modifying_2
B2: Qty | C2: Order Book | G2: Assumption | N2: Best Bid | O2: Best Ask
A3: Level | C3: Bid | D3: Ask | E3: Qty | G3: Fair price | L3: Level 1 | M3: 1700 | N3: 100 | O3: 101 | P3: 2500
A4: 1 | B4: 1100 (100 shares of my order + 1000 shares of 3rd party) | C4: 100 | D4: 100.2 | E4: 500 | G4: 100.1
A5: 2 | B5: 100 | C5: 99.5 | D5: 101 | E5: 100 | N5: Best Bid
A6: 3 | B6: 500 | C6: 99 | D6: 101.5 | E6: 300 | L6: Order 1 | M6: 500 | N6: 100
A7: 4 | B7: 10000 | C7: 98.25 | D7: 102.5 | E7: 500 | L7: Order 2 | M7: 200 | N7: 100
A8: 5 | C8: 98 | D8: 103 | E8: 10000 | L8: Order 3 | M8: 300 | N8: 100
L9: Order 4 | M9: 700 | N9: 100
A11: Case 1 | B11: If I find that a stub of my order remains, I add 900 qty at the same price level (at $100)
A12: Case 2 | B12: If I find that a stub of my order remains I send a new pegged order (at best bid + 1 tick), and cancel the 100 qty at $100
A13: Case 3 | B13: If I find that a stub of my order remains I send a new pegged order (at best bid + 1 tick) for 900 qty and don't cancel the 100 qty at $100
A14: Known to us
A15: The prob of executing the first 1000 qty at whichever level is 0.6 and 0.1 for the next two thousand qty
A17: Fair price right now is 100.1
A18: Profit = Fair price - price of trade
A19: Expected value of profit from my trade!!
A20: Case 1 | B20: EV = 0.6*100*0.1 + 0.1*900*0.1 | C20: $15 | E20: EV of profit for 100 shares | I20: EV of profit for 900 shares
B21: prob of getting a trade*no of shares traded*profit | E21: Probability of 100 shares getting traded * profit * Qty | I21: Probability of 900 shares getting traded * profit * Qty
E22: =0.6*0.1*100 | I22: =0.1*0.1*900
A23: Case 2 | B23: If I peg it at 100.05
B24: EV = 0.6*1000*0.05 | C24: =0.6*1000*0.05 -> 30
A26: Case 3 | B26: EV = 100*0.6*0.1 + 900*0.6*0.05 | C26: =100*0.6*0.1 + 900*0.6*0.05 -> 33
E32: Case 1
E33: Qty | F33: Bid | G33: Ask
E34: 100+1000+900 | F34: 100 | G34: 100.2
F35: 99.5 | G35: 101
D36: Qty at Level 1
D37: Priority
D38: 1 | E38: 100 shares | F38: Our orders
D39: 2 | E39: 1000 shares | F39: 3rd party order
D40: 3 | E40: 900 shares | F40: Our orders
C41: Known to us
C42: The prob of executing the first 1000 qty at whichever level is 0.6 and 0.1 for the next two thousand qty
C44: the prob of 100 shares of our order and 900 shares of the 3rd party orders getting traded is 60%
C45: the prob of 100 shares of the 3rd party and 900 shares of our order getting traded is 10%
E47: Case 3
D48: Level | E48: Qty | F48: Bid | G48: Ask
D49: 1 | E49: 900 | F49: 100.05 | G49: 100.2
D50: 2 | E50: 100+1000 | F50: 100 | G50: 101
D51: 3 | F51: 99.5
D54: Level | E54: Qty | F54: Bid | G54: Ask
D55: 1 | E55: 900 | F55: 100.05 | G55: 100.2
D56: 2 | E56: 1100 | F56: 100 | G56: 101
D57: 3 | E57: 1000 | F57: 99.5
D59: Probability of trading the first 900 shares at Level 1 is 60%
D60: Probability of trading the next 100 shares at Level 2 is 60%
D61: Probability of trading the next 1000 shares at Level 2 is 10%
D62: Probability of trading the next 1000 shares at Level 3 is 10%

Sheet Pegging with Threshold
A1: Pegging so that the market doesn't game you
I2: Simple pegging logic--> 5 cents better than the best bid always!!
E3: Order Book | I3: A simple pegging logic would make you fire an order at 100.45 if the best bid changes to 100.4 even with 1 qty
C4: Level | E4: Bid | F4: Ask | I4: , even if there is a sell order at 100.5!!
C5: 1 | D5: 100 | E5: 99.95 | F5: 100.5 | G5: 200
C6: 2 | D6: 400 | E6: 99.5 | F6: 101 | G6: 500
C7: 3 | D7: 300 | E7: 99 | F7: 101.5 | G7: 500
C8: 4 | D8: 300 | E8: 98.25 | F8: 102.5 | G8: 500
C9: 5 | D9: 300 | E9: 98 | F9: 103 | G9: 500
A11: Pegging logic:
A12: Peg price = 5 cents
A13: Threshold = 30 cents!! | D13: Threshold limit should be more than 50% of the avg bid ask spread!!
A15: Fire 1000 shares @100 (and you will note down the best bid when you fired your order = 99.95)
D17: Order Book
B18: Level | D18: Bid | E18: Ask
B19: 1 | C19: 1000 | D19: 100 | E19: 100.5 | F19: 200
B20: 2 | C20: 100 | D20: 99.95 | E20: 101 | F20: 500
B21: 3 | C21: 400 | D21: 99.5 | E21: 101.5 | F21: 500
B22: 4 | C22: 300 | D22: 99 | E22: 102.5 | F22: 500
B23: 5 | C23: 300 | D23: 98.25 | E23: 103 | F23: 500
B24: 6 | C24: 300 | D24: 98
A26: Say another order comes @100.1
D27: Order Book
B28: Level | D28: Bid | E28: Ask
B29: 1 | C29: 200 | D29: 100.1 | E29: 100.5 | F29: 200
B30: 2 | C30: 1000 | D30: 100 | E30: 101 | F30: 500
B31: 3 | C31: 100 | D31: 99.95 | E31: 101.5 | F31: 500
B32: 4 | C32: 400 | D32: 99.5 | E32: 102.5 | F32: 500
B33: 5 | C33: 300 | D33: 99 | E33: 103 | F33: 500
B34: 6 | C34: 300 | D34: 98.25
C35: 300 | D35: 98
A37: You will check whether best bid - bid that you had noted < threshold!!
A38: If yes, then you will not move your order!!!
A39: 100.1 - 99.95 < 30 cents, therefore you will not do anything!!!
A40: Now, another order comes at 100.2
D41: Order Book
B42: Level | D42: Bid | E42: Ask
B43: 1 | C43: 200 | D43: 100.2 | E43: 100.5 | F43: 200
B44: 2 | C44: 1000 | D44: 100 | E44: 101 | F44: 500
B45: 3 | C45: 100 | D45: 99.95 | E45: 101.5 | F45: 500
B46: 4 | C46: 400 | D46: 99.5 | E46: 102.5 | F46: 500
B47: 5 | C47: 300 | D47: 99 | E47: 103 | F47: 500
B48: 6 | C48: 300 | D48: 98.25
C49: 300 | D49: 98
A51: You will check whether best bid - bid that you had noted < threshold!!
A52: If yes, then you will not move your order!!!
A53: 100.2 - 99.95 < 30 cents, therefore you will not do anything!!!
A54: Now, another order comes at 100.3
D55: Order Book
B56: Level | D56: Bid | E56: Ask
B57: 1 | C57: 200 | D57: 100.3 | E57: 100.5 | F57: 200
B58: 2 | C58: 1000 | D58: 100 | E58: 101 | F58: 500
B59: 3 | C59: 100 | D59: 99.95 | E59: 101.5 | F59: 500
B60: 4 | C60: 400 | D60: 99.5 | E60: 102.5 | F60: 500
B61: 5 | C61: 300 | D61: 99 | E61: 103 | F61: 500
B62: 6 | C62: 300 | D62: 98.25
C63: 300 | D63: 98
A65: You will check whether best bid - bid that you had noted < threshold!!
A66: If no, then I will modify my pegged order at 5 cents better than the bid!!
A67: 100.3 - 99.95 > 30 cents, therefore you will FIRE!!
D69: Order Book
B70: Level | D70: Bid | E70: Ask
B71: 1 | C71: 1000 | D71: 100.35 | E71: 100.5 | F71: 200
B72: 2 | C72: 200 | D72: 100.3 | E72: 101 | F72: 500
B73: 3 | C73: 100 | D73: 99.95 | E73: 101.5 | F73: 500
B74: 4 | C74: 400 | D74: 99.5 | E74: 102.5 | F74: 500
B75: 5 | C75: 300 | D75: 99 | E75: 103 | F75: 500
B76: 6 | C76: 300 | D76: 98.25
C77: 300 | D77: 98

Sheet Pegging with Threshold_sign siz
A1: Pegging so that the market doesn't game you
I2: Simple pegging logic--> 5 cents better than the best bid always!!
E3: Order Book | I3: A simple pegging logic would make you fire an order at 100.45 if the best bid changes to 100.4 even with 1 qty
C4: Level | E4: Bid | F4: Ask | I4: , even if there is a sell order at 100.5!!
C5: 1 | D5: 100 | E5: 99.95 | F5: 100.5 | G5: 200
C6: 2 | D6: 400 | E6: 99.5 | F6: 101 | G6: 500
C7: 3 | D7: 300 | E7: 99 | F7: 101.5 | G7: 500
C8: 4 | D8: 300 | E8: 98.25 | F8: 102.5 | G8: 500
C9: 5 | D9: 300 | E9: 98 | F9: 103 | G9: 500
K10: Pegging logic + Threshold and Sign Size
A11: Pegging logic: | K11: I will Check if the order ahead of me has a sign size!!
A12: Peg price = 5 cents
A13: Threshold = 30 cents!! | D13: Threshold limit should be more than 50% of the avg bid ask spread!!
A15: Fire 1000 shares @100 (and you will note down the best bid when you fired your order = 99.95)
D17: Order Book
B18: Level | D18: Bid | E18: Ask
B19: 1 | C19: 1000 | D19: 100 | E19: 100.5 | F19: 200
B20: 2 | C20: 100 | D20: 99.95 | E20: 101 | F20: 500
B21: 3 | C21: 400 | D21: 99.5 | E21: 101.5 | F21: 500
B22: 4 | C22: 300 | D22: 99 | E22: 102.5 | F22: 500
B23: 5 | C23: 300 | D23: 98.25 | E23: 103 | F23: 500
B24: 6 | C24: 300 | D24: 98
A26: Say another order comes @100.1
D27: Order Book
B28: Level | D28: Bid | E28: Ask
B29: 1 | C29: 200 | D29: 100.1 | E29: 100.5 | F29: 200
B30: 2 | C30: 1000 | D30: 100 | E30: 101 | F30: 500
B31: 3 | C31: 100 | D31: 99.95 | E31: 101.5 | F31: 500
B32: 4 | C32: 400 | D32: 99.5 | E32: 102.5 | F32: 500
B33: 5 | C33: 300 | D33: 99 | E33: 103 | F33: 500
B34: 6 | C34: 300 | D34: 98.25
C35: 300 | D35: 98
A37: You will check whether best bid - bid that you had noted < threshold!!
A38: If yes, then you will not move your order!!!
A39: 100.1 - 99.95 < 30 cents, therefore you will not do anything!!!
D41: Order Book
B42: Level | D42: Bid | E42: Ask
B43: 1 | C43: 200 | D43: 100.2 | E43: 100.5 | F43: 200
B44: 2 | C44: 1000 | D44: 100 | E44: 101 | F44: 500
B45: 3 | C45: 100 | D45: 99.95 | E45: 101.5 | F45: 500
B46: 4 | C46: 400 | D46: 99.5 | E46: 102.5 | F46: 500
B47: 5 | C47: 300 | D47: 99 | E47: 103 | F47: 500
B48: 6 | C48: 300 | D48: 98.25
C49: 300 | D49: 98
A51: You will check whether best bid - bid that you had noted < threshold!!
A52: If yes, then you will not move your order!!!
A53: 100.2 - 99.95 < 30 cents, therefore you will not do anything!!!
D55: Order Book
B56: Level | D56: Bid | E56: Ask
B57: 1 | C57: 200 | D57: 100.3 | E57: 100.5 | F57: 200
B58: 2 | C58: 1000 | D58: 100 | E58: 101 | F58: 500
B59: 3 | C59: 100 | D59: 99.95 | E59: 101.5 | F59: 500
B60: 4 | C60: 400 | D60: 99.5 | E60: 102.5 | F60: 500
B61: 5 | C61: 300 | D61: 99 | E61: 103 | F61: 500
B62: 6 | C62: 300 | D62: 98.25
C63: 300 | D63: 98
A65: You will check whether best bid - bid that you had noted < threshold!!
A66: If no, then I will modify my pegged order at 5 cents better than the bid!!
A67: 100.3 - 99.95 > 30 cents, therefore I will check for sig size ahead
A68: I will check the order size of the order ahead of me---(if this is greater than 50% of my order size I will fire)
D69: Order Book
B70: Level | D70: Bid | E70: Ask
B71: 1 | C71: 200 | D71: 100.3 | E71: 100.5 | F71: 200
B72: 2 | C72: 1000 | D72: 100 | E72: 101 | F72: 500
B73: 3 | C73: 100 | D73: 99.95 | E73: 101.5 | F73: 500
B74: 4 | C74: 400 | D74: 99.5 | E74: 102.5 | F74: 500
B75: 5 | C75: 300 | D75: 99 | E75: 103 | F75: 500
B76: 6 | C76: 300 | D76: 98.25
C77: 300 | D77: 98

Sheet DR_tips
C7: A whipsaw logic:
C9: If Significant size (>80%) ahead of you has moved say 2-3 ticks down, then you can lower your bid
C13: Setting Discretion Range(DR):
C15: a) The expected spread between the best Bid and the best Ask for the asset. Say the average spread for the contract is 50 cents. Then the DR can be set at say half the average spread (25cents). This would mean whenever we can trade at a spread of 25 cents we will fire our order.
C17: b) Price Trend can also be used as a variable to determine the DR. If the price is trending then the DR can be higher because it's possible that the current price would increase in the near future. If the market is reverting then we can keep a smaller DR because then we have a higher probability of getting a trade at the current prices.
C19: c) Liquidity at the opposite side: If say we want to buy an asset and the liquidity at Ask side is quite low. In this case we can have a higher DR so that the probability of getting a trade is higher.

Sheet Post only
B3: Order Book | E3: at t=0sec
A4: Level | B4: Bid | C4: Ask | E4: Buy Post only order fired at 100.4 for 100 shares
A5: 1 | B5: 100 | C5: 100.5
A6: 2 | B6: 99.5 | C6: 101
A7: 3 | B7: 99 | C7: 101.5
A8: 4 | B8: 98.25 | C8: 102.5
A9: 5 | B9: 98 | C9: 103
A10: CASE 1
A11: t=1millisec
B12: Order Book
A13: Level | B13: Bid | C13: Ask
A14: 1 | B14: 100.4 | C14: 100.5
A15: 2 | B15: 100 | C15: 101
A16: 3 | B16: 99.5 | C16: 101.5
A17: 4 | B17: 99 | C17: 102.5
A18: 5 | B18: 98.25 | C18: 103
B19: 98
A23: CASE 2
A24: t=1millisec
B25: Order Book | E25: The BUY post only order @100.4 will get cancelled
A26: Level | B26: Bid | C26: Ask
A27: 1 | B27: 100 | C27: 100.3
A28: 2 | B28: 99.5 | C28: 101
A29: 3 | B29: 99 | C29: 101.5
A30: 4 | B30: 98.25 | C30: 102.5
A31: 5 | B31: 98 | C31: 103

Sheet Sheet1
D6: t=0 | F6: Fair Price
F7: 100
E8: Bid Price | G8: Ask Price
E9: 99.5 | G9: 100.5
D11: t = 100 mics | F11: Fair Price
F12: 99.8
E13: Bid Price | G13: Ask Price
E14: 99.3 | G14: 100.3
